lending/lending_fUSD_20240111
["ID","MTS","AMOUNT","RATE_DAILY","PERIOD"]
[311147007,1704931385854,-1645.18680225,0.00023254,2]
[311147008,1704931385874,-418.31655925,0.00023254,2]
[311147019,1704931622802,-1000.0,0.00023979,2]
[311147020,1704931622824,-1232.67175564,0.0002398,2]
[311147021,1704931622847,-246.75786482,0.00023981,2]
[311147022,1704931622869,-150.0,0.00023989,2]
[311147023,1704931622891,-150.0,0.00023989,2]
[311147024,1704931622912,-2090.22508608,0.00023989,2]
[311147025,1704931622935,-25768.0,0.0002399,2]
[311147026,1704931622959,-161.35201167,0.00024123,2]
[311147027,1704931622979,-385.03739948,0.00024223,2]
[311147028,1704931623003,-299.17561825,0.00024223,2]
[311147029,1704931623024,-155.0,0.00024223,2]
[311147030,1704931623046,-313.87538666,0.00024223,2]
[311147031,1704931623067,-155.25287291,0.00024223,2]
[311147032,1704931623091,-196.33714214,0.00024223,2]
[311147033,1704931623117,-10539.87918449,0.00024223,2]
[311147034,1704931623139,-3323.78268181,0.00024223,2]
[311147035,1704931623164,-1451.42969647,0.00024223,2]
[311147036,1704931623185,-3522.31932892,0.00024223,2]
[311147037,1704931623209,-269.99485082,0.00024223,2]
[311147038,1704931623229,-1063.40603188,0.00024224,2]
[311147039,1704931623250,-866.20589014,0.00024224,2]
[311147040,1704931623272,-95036.40552844,0.00024225,2]
[311147041,1704931623294,-16259.724,0.00024225,2]
[311147042,1704931623315,-292.44,0.00024225,2]
[311147043,1704931623337,-433.24,0.00024346,2]
[311147044,1704931623359,-892.57,0.00024898,2]
[311147045,1704931623382,-547.01659378,0.00024988,2]
[311147046,1704931623404,-1203.3510332,0.00024997,2]
[311147047,1704931623425,-1054.90653063,0.00024999,2]
[311147048,1704931623449,-227.33139922,0.00025,2]
[311147049,1704931623472,-1651.03954871,0.00025,2]
[311147050,1704931623494,-350.0,0.00025,3]
[311147051,1704931623515,-650.0,0.00025,2]
[311147070,1704931755326,-30869.06424833,0.00024124,2]
[311147071,1704931755345,-523.5204,0.00024125,2]
[311147072,1704931755366,-161.35201161,0.00025501,2]
[311147073,1704931755387,-153.36,0.00025868,2]
[311147074,1704931755406,-223.11,0.00025935,2]
[311147075,1704931755425,-412.45,0.00025994,2]
[311147076,1704931755445,-153.36,0.0002603,2]
[311147077,1704931755464,-200.0,0.00026073,2]
[311147078,1704931755485,-153.36,0.00026191,2]
[311147079,1704931755505,-153.36,0.00026353,2]
[311147080,1704931755524,-499.99,0.00026515,2]
[311147081,1704931755547,-2501.73,0.00026515,2]
[311147082,1704931755568,-153.36,0.00026515,2]
[311147083,1704931755589,-163.83,0.00026527,2]
[311147084,1704931755610,-433.24,0.0002661,2]
[311147085,1704931755630,-153.36,0.00026676,2]
[311147086,1704931755650,-157.80048688,0.00026796,5]
[311147087,1704931755670,-23900.0,0.00026796,2]
[311147088,1704931755689,-193.76,0.00026796,2]
[311147089,1704931755708,-150.0,0.00026823,2]
[311147090,1704931755729,-153.36,0.00026838,2]
[311147091,1704931755749,-161.35201161,0.00026878,2]
[311147092,1704931755769,-153.36,0.00027,2]
[311147093,1704931755793,-400.0,0.00027,3]
[311147094,1704931755814,-163.25,0.00027034,2]
[311147095,1704931755834,-163.25,0.00027108,2]
[311147096,1704931755854,-153.36,0.00027161,2]
[311147097,1704931755874,-163.25,0.00027182,2]
[311147098,1704931755894,-164.64,0.00027204,2]
[311147099,1704931755914,-163.25,0.00027256,2]
[311147100,1704931755934,-153.36,0.00027323,2]
[311147101,1704931755955,-163.25,0.00027331,2]
[311147102,1704931755977,-158.7,0.00027397,2]
[311147103,1704931755997,-250.0,0.00027397,2]
[311147104,1704931756017,-163.25,0.00027405,2]
[311147105,1704931756041,-163.25,0.00027479,2]
[311147106,1704931756063,-153.36,0.00027485,2]
[311147107,1704931756083,-163.25,0.00027553,2]
[311147108,1704931756104,-163.25,0.00027627,2]
[311147109,1704931756126,-153.36,0.00027646,2]
[311147110,1704931756146,-163.25,0.00027701,2]
[311147111,1704931756167,-163.25,0.00027775,2]
[311147112,1704931756188,-153.36,0.00027808,2]
[311147113,1704931756209,-163.25,0.0002785,2]
[311147114,1704931756228,-2000.0,0.00027902,2]
[311147115,1704931756249,-163.25,0.00027924,2]
[311147116,1704931756270,-153.36,0.0002797,2]
[311147117,1704931756293,-163.25,0.00027998,2]
[311147118,1704931756313,-738.87508028,0.00028,2]
[311147119,1704931756332,-250.0,0.00028014,2]
[311147120,1704931756353,-163.25,0.00028072,2]
[311147121,1704931756372,-1000.0,0.00028128,2]
[311147122,1704931756394,-153.36,0.00028131,2]
[311147123,1704931756415,-163.25,0.00028146,2]
[311147124,1704931756435,-163.83,0.0002819,2]
[311147125,1704931756455,-163.25,0.0002822,2]
[311147126,1704931756475,-161.35201161,0.00028256,2]
[311147127,1704931756499,-153.36,0.00028293,2]
[311147128,1704931756518,-163.25,0.00028294,2]
[311147129,1704931756543,-163.25,0.00028368,2]
[311147130,1704931756563,-163.25,0.00028443,2]
[311147131,1704931756584,-153.36,0.00028455,2]
[311147132,1704931756605,-158.13,0.00028475,2]
[311147133,1704931756624,-150.0,0.00028577,2]
[311147134,1704931756644,-158.7,0.00028822,2]
[311147135,1704931756664,-433.24,0.00028874,2]
[311147136,1704931756683,-393.32580774,0.0002889,2]
[311147137,1704931756702,-586.45,0.00028891,2]
[311147138,1704931756721,-20044.7,0.000289,2]
[311147139,1704931756741,-3732.19094194,0.000289,2]
[311147140,1704931758231,-16312.50905806,0.000289,2]
[311147141,1704931758251,-357.61908572,0.00028987,2]
[311147142,1704931758270,-2362.31087289,0.00028999,2]
[311147143,1704931758293,-450.0,0.00029,3]
[311147144,1704931758312,-150.99,0.00029,2]
[311147145,1704931758331,-317.04,0.00029,2]
[311147146,1704931758351,-13911.53998333,0.00029,2]
[311147147,1704931758409,-26856.779,0.00029,2]
[311147148,1704931761084,-235.56,0.00027344,2]
[311147149,1704931761104,-312.13,0.00027701,2]
[311147150,1704931761124,-5154.8607,0.00029,2]
[311147151,1704931763133,-27385.43043033,0.00029,2]
[311147156,1704931831879,-944.14137974,0.000289,2]
[311147157,1704931831937,-2140.94062026,0.000289,2]
[311147158,1704931831947,-2072.536,0.000289,2]
[311147159,1704931831956,-54244.9217641,0.00029,2]
[311147160,1704931831998,-466.01555,0.00029,2]
[311147186,1704931832852,-328611.40093137,0.00029,2]
[311147187,1704931832861,-349.31,0.00029087,2]
[311147188,1704931832871,-9113.15828334,0.00029189,2]
[311147189,1704931832880,-867.07,0.0002932,2]
[311147190,1704931832891,-570.02,0.00029412,2]
[311147191,1704931832901,-153.22,0.00029458,2]
[311147192,1704931832910,-193.76,0.00029476,2]
[311147193,1704931832920,-299.56963255,0.000295,3]
[311147194,1704931832930,-158.13,0.00029528,2]
[311147195,1704931832940,-1000.0,0.00029629,2]
[311147196,1704931832949,-161.35201161,0.00029634,2]
[311147197,1704931832959,-150.99,0.00029634,2]
[311147198,1704931832968,-8275.449,0.000297,2]
[311147199,1704931832978,-1052.1783,0.000297,2]
[311147200,1704931832987,-165.07994976,0.000297,2]
[311147201,1704931832997,-4733.9769101,0.0002978,2]
[311147202,1704931833006,-321.50292162,0.00029798,2]
[311147203,1704931833015,-88079.633012,0.000298,2]
[311147204,1704931833028,-401.24,0.000298,2]
[311147205,1704931833037,-163.83,0.00029854,2]
[311147206,1704931833046,-572.87,0.000299,2]
[311147207,1704931833055,-155.0,0.0003,2]
[311147208,1704931833065,-7367.67526434,0.0003,4]
[311147209,1704931833074,-677.34550316,0.0003,4]
[311147210,1704931833083,-3779.48092032,0.0003,2]
[311147211,1704931833096,-83134.26485838,0.0003,4]
[311147212,1704931833106,-5424.2887,0.0003,4]
[311147213,1704931833115,-153.84,0.00030137,2]
[311147214,1704931833124,-168.55,0.00030214,2]
[311147215,1704931833133,-155.13,0.00030267,2]
[311147216,1704931833143,-158.13,0.00030582,2]
[311147217,1704931833152,-500.0,0.00031,3]
[311147218,1704931833162,-156.79,0.00031,2]
[311147219,1704931833172,-161.35201161,0.00031012,2]
[311147220,1704931833181,-153.84,0.0003105,2]
[311147221,1704931833205,-433.24,0.00031138,2]
[311147222,1704931833225,-3178.8,0.00031329,2]
[311147223,1704931833235,-163.83,0.00031517,2]
[311147224,1704931833245,-158.13,0.00031636,2]
[311147225,1704931833254,-153.84,0.00031963,2]
[311147226,1704931833264,-193.76,0.00032156,2]
[311147227,1704931833274,-161.35201161,0.00032389,2]
[311147228,1704931833284,-158.13,0.0003269,2]
[311147229,1704931833294,-153.84,0.00032877,2]
[311147230,1704931833304,-207.29,0.00032877,15]
[311147231,1704931833314,-155.13,0.00033294,2]
[311147232,1704931833323,-1000.0,0.00033332,2]
[311147233,1704931833332,-433.24,0.00033402,2]
[311147234,1704931833346,-158.13,0.00033743,2]
[311147235,1704931833357,-161.35201161,0.00033767,2]
[311147236,1704931833367,-153.84,0.0003379,2]
[311147237,1704931833378,-1000.0,0.00034,4]
[311147238,1704931833387,-201.60552897,0.00034,2]
[311147239,1704931833397,-30805.91735507,0.00034,2]
[311147240,1704931833407,-1537.497391,0.000344,2]
[311147241,1704931833418,-314.34,0.00034521,2]
[311147242,1704931833427,-150.99155862,0.00034603,2]
[311147243,1704931833437,-180.0,0.00034658,2]
[311147244,1704931833446,-30982.58124473,0.0003468,30]
[311147245,1704931833456,-153.84,0.00034703,2]
[311147246,1704931833465,-158.13,0.00034797,2]
[311147247,1704931833475,-4619.84552264,0.00035,2]
[311147248,1704931833484,-266.25,0.00035,2]
[311147249,1704931833494,-298.21149434,0.00035,4]
[311147250,1704931833505,-351.27143026,0.00035,4]
[311147251,1704931833515,-1446.01414626,0.00035,3]
[311147252,1704931833524,-519.54844331,0.00035,4]
[311147253,1704931833535,-263.64107883,0.00035,2]
[311147254,1704931833545,-263.64107883,0.00035,2]
[311147255,1704931833555,-263.64107883,0.00035,2]
[311147256,1704931833565,-263.64107883,0.00035,2]
[311147257,1704931833574,-263.64107883,0.00035,2]
[311147258,1704931833583,-263.64107883,0.00035,2]
[311147259,1704931833596,-263.64107883,0.00035,2]
[311147260,1704931833606,-263.64107883,0.00035,2]
[311147261,1704931833615,-263.64107883,0.00035,2]
[311147262,1704931833624,-263.64107883,0.00035,2]
[311147263,1704931833633,-450.0,0.0003502,3]
[311147264,1704931833642,-161.35201161,0.00035145,2]
[311147265,1704931833651,-1000.0,0.000354,2]
[311147266,1704931833660,-153.84,0.00035616,2]
[311147267,1704931833669,-150.0,0.00035616,2]
[311147268,1704931833678,-433.24,0.00035666,2]
[311147269,1704931833688,-1833.70329532,0.00035778,2]
[311147270,1704931833697,-314.34,0.00035798,2]
[311147271,1704931833706,-29824.82949797,0.00035818,11]
[311147272,1704931833715,-56442.86450263,0.00035818,10]
[311147273,1704931833724,-2822.14322513,0.00035818,10]
[311147274,1704931833734,-158.13,0.00035851,2]
[311147275,1704931833743,-150.99155862,0.00035913,2]
[311147276,1704931833753,-8500.32,0.00036,2]
[311147277,1704931833763,-150.51,0.00036,2]
[311147278,1704931833772,-478.13226848,0.00036029,8]
[311147279,1704931833780,-164.34989606,0.00036089,2]
[311147280,1704931833789,-164.34989603,0.00036089,2]
[311147281,1704931833798,-154.0,0.000362,2]
[311147282,1704931833805,-1000.0,0.000364,2]
[311147283,1704931833814,-1000.0,0.00036409,2]
[311147284,1704931833823,-325.0,0.00036432,2]
[311147285,1704931833832,-161.35201161,0.00036522,2]
[311147286,1704931833843,-153.84,0.0003653,2]
[311147287,1704931833852,-150.0,0.00036554,2]
[311147288,1704931833861,-207.29,0.00036613,15]
[311147289,1704931833870,-204.0,0.00036793,2]
[311147290,1704931833879,-35007.63673078,0.000368,30]
[311147291,1704931833889,-90542.53358116,0.000368,3]
[311147292,1704931833898,-16897.0,0.000368,3]
[311147293,1704931833908,-1000.0,0.000369,2]
[311147294,1704931833917,-2891.0,0.000369,3]
[311147295,1704931833926,-158.13,0.00036905,2]
[311147296,1704931833935,-2353.179,0.0003697,2]
[311147297,1704931833944,-4166.0,0.0003697,2]
[311147298,1704931833953,-19658.0,0.0003697,2]
[311147299,1704931833962,-18404.07,0.0003697,2]
[311147300,1704931833971,-155.0,0.00037,4]
[311147301,1704931833981,-154.0,0.00037,2]
[311147302,1704931833990,-308.92091342,0.00037,4]
[311147303,1704931834000,-2538.6569538,0.00037,14]
[311147304,1704931834009,-155.03,0.00037,3]
[311147305,1704931834019,-155.03,0.00037,3]
[311147306,1704931834028,-155.03,0.00037,3]
[311147307,1704931834037,-155.03,0.00037,3]
[311147308,1704931834046,-172.99308414,0.00037028,30]
[311147309,1704931834056,-154.999999,0.00037028,2]
[311147310,1704931834066,-150.0,0.00037028,30]
[311147311,1704931834075,-1000.0,0.00037036,2]
[311147312,1704931834084,-314.34,0.00037075,2]
[311147313,1704931834096,-150.0,0.00037175,2]
[311147314,1704931834106,-5739.53724882,0.000372,7]
[311147315,1704931834115,-150.99155862,0.00037222,2]
[311147316,1704931834124,-1833.7032952,0.00037357,2]
[311147317,1704931834133,-1000.0,0.000374,2]
[311147318,1704931834143,-153.84,0.00037443,2]
[311147319,1704931834152,-389.0,0.0003747,2]
[311147320,1704931834161,-1354.0,0.0003747,2]
[311147321,1704931834170,-1848.0,0.0003747,2]
[311147322,1704931834180,-834.0,0.0003747,2]
[311147323,1704931834189,-944.0,0.0003747,2]
[311147324,1704931834199,-448.0,0.0003747,2]
[311147325,1704931834208,-1234.0,0.0003747,2]
[311147326,1704931834217,-700.0,0.0003747,2]
[311147327,1704931834226,-547.197,0.0003747,2]
[311147328,1704931834235,-1251.0,0.0003747,2]
[311147329,1704931834244,-475.124,0.0003747,2]
[311147330,1704931834254,-733.124,0.0003747,2]
[311147331,1704931834263,-1930.0,0.0003747,2]
[311147332,1704931834273,-1138.0,0.0003747,2]
[311147333,1704931834282,-882.998,0.0003747,2]
[311147334,1704931834292,-425.0,0.0003747,2]
[311147335,1704931834301,-235.0,0.0003747,2]
[311147336,1704931834310,-507.0,0.0003747,2]
[311147337,1704931834320,-318.0,0.0003747,2]
[311147338,1704931834329,-150.0,0.00037491,2]
[311147339,1704931834343,-158.77065758,0.00037652,7]
[311147340,1704931834352,-7500.0,0.000378,2]
[311147341,1704931834362,-2000.0,0.000378,4]
[311147342,1704931834371,-225.0,0.00037807,4]
[311147343,1704931834380,-1538.87,0.00037808,2]
[311147344,1704931834389,-1538.87,0.00037808,2]
[311147345,1704931834398,-1538.87,0.00037808,2]
[311147346,1704931834407,-8053.91655941,0.0003782,8]
[311147347,1704931834417,-1764.97000784,0.0003782,9]
[311147348,1704931834426,-199.25582456,0.0003782,8]
[311147349,1704931834435,-199.52988217,0.0003782,3]
[311147350,1704931834445,-151.0,0.00037854,30]
[311147351,1704931834454,-155.17374078,0.00037868,7]
[311147352,1704931834464,-593.48261106,0.0003787,2]
[311147353,1704931834473,-400.0,0.0003787,2]
[311147354,1704931834482,-174.73011459,0.00037888,2]
[311147355,1704931834492,-566.56746278,0.00037889,11]
[311147356,1704931834502,-11105.0,0.0003789,3]
[311147357,1704931834511,-169.79796248,0.00037897,2]
[311147358,1704931834520,-6968.41574318,0.000379,2]
[311147359,1704931834530,-3000.0,0.000379,18]
[311147360,1704931834539,-161.35201161,0.000379,2]
[311147361,1704931834548,-177053.569875,0.000379,2]
[311147362,1704931834558,-3008.324008,0.0003791,18]
[311147363,1704931834567,-433.24,0.0003793,2]
[311147364,1704931834576,-158.13,0.00037958,2]
[311147365,1704931834586,-88526.7849377,0.00037959,2]
[311147366,1704931834600,-88526.7849377,0.00037969,2]
[311147367,1704931834609,-400.0,0.0003797,2]
[311147368,1704931834619,-1538.87,0.00037978,2]
[311147369,1704931834629,-149392.16134295,0.00037978,2]
[311147370,1704931834643,-464.54,0.00037978,2]
[311147371,1704931834654,-13401.95713698,0.00037978,2]
[311147376,1704931838513,-1478.00002489,0.00037978,2]
[311147377,1704931838629,-63733.38015087,0.00037978,2]
[311147378,1704931838820,-0.53621565,0.00037978,2]
[311147379,1704931838833,-2861.16401675,0.00037978,2]
[311147380,1704931838849,-14594.94890159,0.00037978,2]
[311147381,1704931838860,-19653.66702332,0.00037978,2]
[311147382,1704931838869,-152.2228725,0.00037979,2]
[311147383,1704931838878,-1538.87,0.00037988,2]
[311147384,1704931838887,-150.0,0.00037988,2]
[311147385,1704931838896,-300.0,0.00037988,7]
[311147386,1704931838906,-323.97904923,0.00037988,2]
[311147387,1704931838915,-47763.07086796,0.00037989,2]
[311147388,1704931838927,-11892.795,0.00037989,2]
[311147389,1704931838964,-2530.9927534,0.00037989,2]
[311147390,1704931838975,-1285.22235789,0.00037989,2]
[311147391,1704931838986,-951.26132272,0.00037989,2]
[311147393,1704931838997,-698.35,0.00037989,2]
[311147609,1704931841169,-12944.16840195,0.00037989,2]
[311147611,1704931841180,-11618.05896,0.00037989,2]
[311147664,1704931842978,-776.38,0.00037969,10]
[311147666,1704931842987,-766.3951505,0.00037988,2]
[311147668,1704931842997,-852.26752375,0.00037988,10]
[311147676,1704931843096,-147.73247625,0.00037988,10]
[311147678,1704931843106,-4788.60481086,0.00037989,2]
[311147681,1704931843118,-77778.28739359,0.00037989,2]
[311147683,1704931843129,-5655.09936312,0.00037989,2]
[311147685,1704931843155,-10221.16517317,0.00037989,2]
[311147686,1704931843166,-16188.24772307,0.00037989,2]
[311147687,1704931843177,-665.88864,0.00037989,2]
[311147688,1704931843207,-305.0,0.00037989,2]
[311147689,1704931843267,-9319.44179453,0.00037989,2]
[311147690,1704931843279,-33691.58824292,0.00037989,2]
[311147691,1704931843288,-1000.0,0.00038,30]
[311147692,1704931843298,-1000.0,0.00038,30]
[311147693,1704931843306,-1000.0,0.00038,30]
[311147694,1704931843316,-7641.0732235,0.00038,2]
[311147695,1704931843326,-818.73,0.00038,7]
[311147697,1704931843335,-176.01,0.00038,2]
[311147698,1704931843346,-1367.41,0.00038,7]
[311147699,1704931843356,-2044.41,0.00038,7]
[311147700,1704931843364,-184831.41533226,0.00038142,2]
[311147701,1704931843376,-30692.09400894,0.00038142,2]
[311147706,1704931846016,-3873.86999999,0.00035816,4]
[311147707,1704931846132,-1747.93007092,0.00035816,4]
[311147708,1704931846328,-4655.0941928,0.00035816,4]
[311147709,1704931846339,-24429.40616748,0.00035816,4]
[311147710,1704931846350,-178.8165684,0.00038042,2]
[311147712,1704931846359,-100442.42533475,0.00038142,2]
[311147787,1704932965263,-150.0,0.00025,2]
[311147788,1704932965285,-350.0,0.00025,3]
[311147789,1704932965306,-400.0,0.00027,3]
[311147790,1704932965325,-483.68814411,0.000288,2]
[311147791,1704932965346,-1640.4215,0.000289,2]
[311147792,1704932965366,-450.0,0.00029,3]
[311147793,1704932965387,-155.0,0.0003,2]
[311147794,1704932965407,-150.0,0.00031,2]
[311147795,1704932970125,-175.50999217,0.00032368,2]
[311147796,1704932970146,-150.0,0.00033368,2]
[311147797,1704932970166,-293.52,0.00033832,2]
[311147798,1704932971384,150.0,0.00031,2]
[311147807,1704933013433,210.58632321,0.00033967,2]
[311147808,1704933028858,481.79331521,0.00031,2]
[311147810,1704933032097,-464.9862939,0.00031,2]
[311147811,1704933032109,-955.35774204,0.00031,2]
[311147812,1704933032120,-431.71184903,0.00031,2]
[311147813,1704933032156,-2550.0,0.00031,2]
[311147814,1704933032167,-116.15079982,0.00031,2]
[311147815,1704933032176,-68.25367679,0.00033967,2]
[311147816,1704933032186,-115.59552339,0.00034165,4]
[311147817,1704933032197,-321.90484521,0.00034165,4]
[311147818,1704933032208,-562.4996314,0.00034165,4]
[311147819,1704933032217,-104.54701571,0.00034166,2]
[311147820,1704933032229,-65.61725874,0.00034166,2]
[311147821,1704933032238,-2118.56405589,0.00034257,2]
[311147822,1704933032247,-300.41501205,0.00034265,4]
[311147823,1704933032256,-155.0,0.00034266,2]
[311147824,1704933032265,-150.0,0.00034266,3]
[311147825,1704933032274,-1128.43481615,0.00034267,2]
[311147826,1704933032286,-147.65518385,0.00034267,2]
[311147827,1704933032295,-7284.36725279,0.00034267,2]
[311147828,1704933032306,-299.42368159,0.00034267,2]
[311147829,1704933032319,-300.0,0.00034267,2]
[311147830,1704933032330,-28807.04906562,0.00034267,2]
[311147831,1704933032340,-522.38,0.00034267,2]
[311147832,1704933032348,-5751.31,0.00034267,2]
[311147833,1704933032358,-150.0,0.00034368,2]
[311147834,1704933032368,-2401.23,0.00034368,2]
[311147835,1704933032389,-932.94724399,0.00035,4]
[311147836,1704933032400,-427.49309946,0.00035041,2]
[311147837,1704933032409,-150.99,0.00035043,30]
[311147838,1704933032420,-499.99,0.00035044,2]
[311147839,1704933032429,-150.0,0.00035368,2]
[311147840,1704933032439,-150.0,0.00035616,2]
[311147841,1704933032449,-2000.0,0.00035626,2]
[311147845,1704933032459,-343.94,0.00035648,2]
[311147848,1704933032471,-400.0,0.00035651,2]
[311147850,1704933032480,-158.13,0.00035658,2]
[311147853,1704933032490,-722.55,0.00035706,2]
[311147855,1704933032500,-172.74,0.00035717,15]
[311147858,1704933032509,-250.0,0.0003573,111]
[311147861,1704933032519,-150.0,0.00035771,2]
[311147864,1704933032528,-802.26,0.00035808,10]
[311147867,1704933032538,-668.55,0.00035808,10]
[311147870,1704933032548,-557.12,0.00035808,10]
[311147873,1704933032558,-464.27,0.00035808,10]
[311147876,1704933032569,-4999.41531493,0.00035818,11]
[311147880,1704933032586,-979.38,0.00035818,11]
[311147883,1704933032596,-464.10364,0.00035818,11]
[311147885,1704933032608,-450.25,0.00035818,11]
[311147888,1704933032623,-350.0,0.00035818,11]
[311147890,1704933032635,-3214.45266168,0.00035818,11]
[311147892,1704933032646,-2067.05,0.00035818,11]
[311147985,1704933038172,-21557.13820696,0.00035818,11]
[311147986,1704933038181,-11005.06179302,0.00035818,10]
[311147987,1704933038193,-3363.93783398,0.00035818,10]
[311147988,1704933038203,-718.44998135,0.00035818,10]
[311147989,1704933038211,-5189.94117156,0.00035818,11]
[311147990,1704933038222,-12950.95508622,0.00035818,11]
[311147991,1704933038233,-1942.86664846,0.00035818,11]
[311147992,1704933038251,-6621.41307032,0.00035818,11]
[311147993,1704933038260,-250.0,0.00035837,2]
[311147994,1704933038272,-2861.05535054,0.00035857,2]
[311147995,1704933038284,-2588.0,0.00035857,2]
[311147996,1704933038412,-18450.94464946,0.00035857,2]
[311147997,1704933038423,-1127.26,0.0003591,2]
[311147998,1704933038432,-278.84,0.00036231,2]
[311147999,1704933038441,-1000.0,0.00036235,2]
[311148000,1704933038451,-600.0,0.00036294,2]
[311148001,1704933038463,-2649.0,0.00036345,2]
[311148002,1704933038474,-150.0,0.00036368,2]
[311148003,1704933038483,-204.0,0.00036372,2]
[311148004,1704933038493,-150.0,0.00036559,2]
[311148005,1704933038503,-7500.0,0.000367,2]
[311148006,1704933038512,-1000.0,0.000369,2]
[311148007,1704933038522,-164.34989603,0.000369,2]
[311148008,1704933038531,-343.94,0.00036966,2]
[311148009,1704933038541,-155.0,0.00037,4]
[311148010,1704933038551,-154.59,0.00037,3]
[311148011,1704933038560,-154.59,0.00037,3]
[311148012,1704933038570,-154.59,0.00037,3]
[311148013,1704933038580,-154.59,0.00037,3]
[311148014,1704933038589,-154.59,0.00037,3]
[311148015,1704933038599,-154.59,0.00037,3]
[311148016,1704933038608,-154.59,0.00037,3]
[311148017,1704933038618,-253.74,0.00037023,30]
[311148018,1704933038628,-150.0,0.00037023,30]
[311148020,1704933038638,-5739.53724882,0.000372,7]
[311148022,1704933038648,-150.0,0.00037368,2]
[311148023,1704933038658,-150.0,0.00037503,2]
[311148026,1704933038667,-1234.0,0.00037791,2]
[311148028,1704933038677,-419.514,0.00037791,2]
[311148030,1704933038686,-1251.0,0.00037791,2]
[311148032,1704933038696,-199.4428,0.00037807,2]
[311148034,1704933038705,-3725.51245174,0.0003782,7]
[311148035,1704933038715,-1660.25622587,0.0003782,7]
[311148037,1704933038725,-794.23650353,0.0003782,7]
[311148039,1704933038734,-179.57689395,0.0003782,7]
[311148040,1704933038744,-114.49545315,0.0003782,3]
[311148042,1704933038756,-38.03956563,0.0003782,3]
[311148044,1704933038765,-155.17374078,0.00037876,7]
[311148046,1704933038774,-145.9160802,0.00037884,2]
[311148048,1704933038790,-130.0159198,0.00037884,2]
[311148050,1704933038799,-169.9840802,0.00037884,2]
[311148053,1704933038810,-236.7569198,0.00037884,2]
[311148055,1704933038820,-270.65800441,0.00037884,2]
[311148057,1704933038832,-269.47830344,0.00037884,2]
[311148059,1704933038844,-289.86369215,0.00037884,2]
[311148061,1704933038853,-81.69559087,0.00038,18]
[311148065,1704933038882,-68.30440913,0.00038,18]
[311148067,1704933038892,-157.0,0.00038,2]
[311148069,1704933038902,-1373.84217272,0.00038024,2]
[311148071,1704933038911,-11459.0475,0.00038041,2]
[311148073,1704933038920,-1764.1980671,0.00038042,4]
[311148258,1704933040730,-157.0,0.00038,2]
[311148260,1704933040741,-235.8019329,0.00038042,4]
[311148262,1704933040753,-195.6661891,0.00038042,8]
[311148264,1704933040764,-1360.66515113,0.0003808,2]
[311148266,1704933040774,-153.72803979,0.00038128,7]
[311148268,1704933040785,-288.34262207,0.0003814,4]
[311148270,1704933040796,-16384.63602109,0.0003814,2]
[311148272,1704933040807,-1169.13623544,0.0003814,4]
[311148274,1704933040816,-376.82557817,0.0003814,4]
[311148276,1704933040830,-624.66515753,0.0003814,4]
[311148278,1704933040840,-155.0,0.00038141,4]
[311148280,1704933040849,-166.95575985,0.00038141,4]
[311148282,1704933040859,-273.13576608,0.00038141,2]
[311148284,1704933040868,-7981.10213752,0.00038141,4]
[311148286,1704933040877,-155.0,0.00038141,4]
[311148288,1704933040887,-1218.27,0.00038141,2]
[311148311,1704933041068,-238.90982547,0.00038141,4]
[311148313,1704933041102,-9594.84333625,0.00038142,2]
[311148328,1704933041243,-8364.893282,0.00038142,2]